[Event "Early-Titled-Tuesday-Blitz-October-24-2023"]
[Site "Chess.com"]
[Date "2023.10.24"]
[Round "3"]
[White "Mr_Lion22"]
[Black "Rodalquilar"]
[Result "0-1"]
[WhiteElo "2491"]
[BlackElo "2759"]
[TimeControl "180+1"]
[EndTime "8:26:22 PDT"]
[Termination "Rodalquilar won by resignation"]

1. d4 {[%clk 0:02:50.7]} 1... d5 {[%clk 0:03:00]} 2. c4 {[%clk 0:02:51.2]} 2...
e6 {[%clk 0:03:00.3]} 3. Nc3 {[%clk 0:02:51.8]} 3... a6 {[%clk 0:03:00.2]} 4.
cxd5 {[%clk 0:02:47.4]} 4... exd5 {[%clk 0:03:01.1]} 5. Bf4 {[%clk 0:02:47.6]}
5... Nf6 {[%clk 0:03:00.2]} 6. e3 {[%clk 0:02:48.1]} 6... Bd6 {[%clk 0:02:59.6]}
7. Bg3 {[%clk 0:02:44.3]} 7... O-O {[%clk 0:02:59.1]} 8. Bd3 {[%clk 0:02:42.6]}
8... b6 {[%clk 0:02:58]} 9. Nf3 {[%clk 0:02:42.2]} 9... Bb7 {[%clk 0:02:58]} 10.
O-O {[%clk 0:02:42.8]} 10... Bxg3 {[%clk 0:02:47.7]} 11. hxg3 {[%clk 0:02:42.1]}
11... Nbd7 {[%clk 0:02:48.1]} 12. Rc1 {[%clk 0:02:41.3]} 12... Re8 {[%clk
0:02:47.6]} 13. b4 {[%clk 0:02:41.1]} 13... Ne4 {[%clk 0:02:47.1]} 14. Bxe4
{[%clk 0:02:35.7]} 14... dxe4 {[%clk 0:02:47]} 15. Nd2 {[%clk 0:02:36.6]} 15...
Nf6 {[%clk 0:02:43.3]} 16. Qb3 {[%clk 0:02:30.1]} 16... Ng4 {[%clk 0:02:34.2]}
17. Ne2 {[%clk 0:02:03.7]} 17... Qd6 {[%clk 0:02:29.9]} 18. Nf4 {[%clk
0:02:02.1]} 18... g5 {[%clk 0:02:27]} 19. Ne2 {[%clk 0:01:28.4]} 19... Bd5
{[%clk 0:02:08.1]} 20. Qb2 {[%clk 0:01:20.4]} 20... Re7 {[%clk 0:01:47.5]} 21.
Rc3 {[%clk 0:01:13.7]} 21... Qh6 {[%clk 0:01:23.2]} 22. Rfc1 {[%clk 0:01:02.5]}
22... Qh2+ {[%clk 0:01:19.1]} 23. Kf1 {[%clk 0:01:02.7]} 23... Rd8 {[%clk
0:01:15]} 24. Ng1 {[%clk 0:00:31.7]} 24... Rd6 {[%clk 0:01:09.6]} 25. Rxc7
{[%clk 0:00:12.1]} 25... Rxc7 {[%clk 0:01:09.2]} 26. Rxc7 {[%clk 0:00:13]} 26...
Rf6 {[%clk 0:01:09.6]} 27. Rc8+ {[%clk 0:00:09.7]} 27... Kg7 {[%clk 0:01:09.6]}
28. Nxe4 {[%clk 0:00:07.1]} 28... Bxe4 {[%clk 0:01:01.8]} 0-1

[Event "Early-Titled-Tuesday-Blitz-October-24-2023"]
[Site "Chess.com"]
[Date "2023.10.24"]
[Round "3"]
[White "Kotofeyca"]
[Black "dimitrisl"]
[Result "1-0"]
[WhiteElo "2416"]
[BlackElo "2561"]
[TimeControl "180+1"]
[EndTime "8:26:22 PDT"]
[Termination "Kotofeyca won by checkmate"]

1. d4 {[%clk 0:03:00.9]} 1... Nf6 {[%clk 0:02:59.7]} 2. c4 {[%clk 0:02:59.6]}
2... e6 {[%clk 0:02:59.2]} 3. Nf3 {[%clk 0:02:59.7]} 3... d5 {[%clk 0:02:59.5]}
4. Nc3 {[%clk 0:03:00]} 4... Be7 {[%clk 0:03:00.1]} 5. cxd5 {[%clk 0:03:00.2]}
5... exd5 {[%clk 0:03:00.1]} 6. Bg5 {[%clk 0:03:00.7]} 6... h6 {[%clk 0:02:59]}
7. Bh4 {[%clk 0:02:59.8]} 7... O-O {[%clk 0:02:59]} 8. Qc2 {[%clk 0:02:59.5]}
8... c6 {[%clk 0:02:59.4]} 9. e3 {[%clk 0:02:59.7]} 9... Nbd7 {[%clk 0:03:00]}
10. Bd3 {[%clk 0:02:59.7]} 10... Re8 {[%clk 0:03:00.3]} 11. O-O {[%clk
0:02:59.7]} 11... Ne4 {[%clk 0:03:00.8]} 12. Bxe4 {[%clk 0:02:59.4]} 12... dxe4
{[%clk 0:03:00.6]} 13. Qxe4 {[%clk 0:03:00.3]} 13... Bxh4 {[%clk 0:02:42.1]} 14.
Qxh4 {[%clk 0:03:01.2]} 14... Nf6 {[%clk 0:02:41.4]} 15. a3 {[%clk 0:02:47.6]}
15... Bf5 {[%clk 0:02:39.3]} 16. Qf4 {[%clk 0:02:37.5]} 16... Bh7 {[%clk
0:02:34.9]} 17. Rfd1 {[%clk 0:02:32.3]} 17... g5 {[%clk 0:02:26]} 18. Qg3 {[%clk
0:02:15.4]} 18... Bf5 {[%clk 0:02:22]} 19. Ne5 {[%clk 0:02:00.8]} 19... Nh5
{[%clk 0:02:03.6]} 20. Qf3 {[%clk 0:01:59.6]} 20... Ng7 {[%clk 0:02:04.5]} 21.
g4 {[%clk 0:01:35.3]} 21... Be6 {[%clk 0:02:03.8]} 22. Ne4 {[%clk 0:01:31.1]}
22... f5 {[%clk 0:01:54.3]} 23. gxf5 {[%clk 0:01:26.3]} 23... Bxf5 {[%clk
0:01:55.2]} 24. Ng3 {[%clk 0:01:09.6]} 24... Be6 {[%clk 0:01:47.9]} 25. Ng4
{[%clk 0:00:59.5]} 25... Rf8 {[%clk 0:01:33.3]} 26. Qe4 {[%clk 0:00:37.5]} 26...
h5 {[%clk 0:01:16.9]} 27. Nxh5 {[%clk 0:00:26.8]} 27... Bd5 {[%clk 0:00:58.5]}
28. Qg6 {[%clk 0:00:21.6]} 28... Qe7 {[%clk 0:00:51.4]} 29. Ngf6+ {[%clk
0:00:20.2]} 29... Kh8 {[%clk 0:00:48.5]} 30. Qh7# {[%clk 0:00:19.6]} 1-0

[Event "Early-Titled-Tuesday-Blitz-October-24-2023"]
[Site "Chess.com"]
[Date "2023.10.24"]
[Round "3"]
[White "Nbk90"]
[Black "Fh2411"]
[Result "1-0"]
[WhiteElo "2198"]
[BlackElo "2508"]
[TimeControl "180+1"]
[EndTime "8:26:22 PDT"]
[Termination "Nbk90 won by resignation"]

1. d4 {[%clk 0:03:00.9]} 1... d5 {[%clk 0:02:57.1]} 2. Nf3 {[%clk 0:02:58.9]}
2... c6 {[%clk 0:02:56.6]} 3. c4 {[%clk 0:02:53.6]} 3... Nf6 {[%clk 0:02:56.1]}
4. Nc3 {[%clk 0:02:51.1]} 4... dxc4 {[%clk 0:02:52.5]} 5. g3 {[%clk 0:02:49.6]}
5... b5 {[%clk 0:02:50.3]} 6. Bg2 {[%clk 0:02:49.2]} 6... Bb7 {[%clk 0:02:50.8]}
7. O-O {[%clk 0:02:48.9]} 7... e6 {[%clk 0:02:48.1]} 8. Ne5 {[%clk 0:02:47.6]}
8... Qc8 {[%clk 0:02:48.1]} 9. b3 {[%clk 0:02:46.2]} 9... b4 {[%clk 0:02:43.7]}
10. Ne4 {[%clk 0:02:41.9]} 10... c3 {[%clk 0:02:42.9]} 11. a3 {[%clk 0:02:31.9]}
11... a5 {[%clk 0:02:35.9]} 12. Ng5 {[%clk 0:02:30.1]} 12... Nbd7 {[%clk
0:02:21.5]} 13. Ngxf7 {[%clk 0:02:18.7]} 13... Nxe5 {[%clk 0:02:16.7]} 14. Nxe5
{[%clk 0:02:15.3]} 14... Bd6 {[%clk 0:02:12]} 15. Nc4 {[%clk 0:02:06.7]} 15...
Bc7 {[%clk 0:02:07.8]} 16. e4 {[%clk 0:01:53.5]} 16... O-O {[%clk 0:02:06.4]}
17. e5 {[%clk 0:01:52.5]} 17... Nd5 {[%clk 0:02:06.1]} 18. Bh3 {[%clk
0:01:44.2]} 18... Kh8 {[%clk 0:01:43.1]} 19. Qg4 {[%clk 0:01:39.5]} 19... Re8
{[%clk 0:01:35.9]} 20. Bf4 {[%clk 0:01:27.3]} 20... a4 {[%clk 0:01:30.7]} 21.
Qd1 {[%clk 0:01:16.6]} 21... Ba6 {[%clk 0:01:23]} 22. axb4 {[%clk 0:01:10.7]}
22... Nxb4 {[%clk 0:01:12.7]} 23. Rxa4 {[%clk 0:01:01.2]} 23... Bxc4 {[%clk
0:01:05.9]} 24. Rxa8 {[%clk 0:00:59.1]} 24... Qxa8 {[%clk 0:01:03.9]} 25. bxc4
{[%clk 0:00:59.2]} 25... Qa2 {[%clk 0:00:57.9]} 26. Qh5 {[%clk 0:00:56.6]} 26...
g6 {[%clk 0:00:48.9]} 27. Qh6 {[%clk 0:00:50]} 27... Bd8 {[%clk 0:00:42.5]} 28.
Bxe6 {[%clk 0:00:46.3]} 28... Nd3 {[%clk 0:00:37.4]} 29. Bf7 {[%clk 0:00:44.5]}
29... Nxf4 {[%clk 0:00:33.1]} 30. gxf4 {[%clk 0:00:42.4]} 1-0

[Event "Early-Titled-Tuesday-Blitz-October-24-2023"]
[Site "Chess.com"]
[Date "2023.10.24"]
[Round "3"]
[White "louis198"]
[Black "artin10862"]
[Result "1-0"]
[WhiteElo "2684"]
[BlackElo "2871"]
[TimeControl "180+1"]
[EndTime "8:26:23 PDT"]
[Termination "louis198 won by resignation"]

1. d4 {[%clk 0:03:00]} 1... Nf6 {[%clk 0:02:59]} 2. Bf4 {[%clk 0:03:00.3]} 2...
e6 {[%clk 0:02:51.3]} 3. e3 {[%clk 0:03:00.4]} 3... Bd6 {[%clk 0:02:49.9]} 4.
Bg3 {[%clk 0:03:00.1]} 4... Bxg3 {[%clk 0:02:49.7]} 5. hxg3 {[%clk 0:03:00.2]}
5... d6 {[%clk 0:02:50.4]} 6. Bd3 {[%clk 0:03:00.5]} 6... Nbd7 {[%clk
0:02:50.8]} 7. Nf3 {[%clk 0:03:00.6]} 7... e5 {[%clk 0:02:51.4]} 8. dxe5 {[%clk
0:02:56.7]} 8... dxe5 {[%clk 0:02:51.5]} 9. Nc3 {[%clk 0:02:56.6]} 9... Qe7
{[%clk 0:02:51.7]} 10. Bf5 {[%clk 0:02:48.1]} 10... g6 {[%clk 0:02:22.9]} 11.
Bxd7+ {[%clk 0:02:43.9]} 11... Bxd7 {[%clk 0:02:22.5]} 12. Nd5 {[%clk
0:02:37.3]} 12... Qd6 {[%clk 0:02:22.1]} 13. Nxf6+ {[%clk 0:02:34]} 13... Qxf6
{[%clk 0:02:23]} 14. Qd5 {[%clk 0:02:30]} 14... Bc6 {[%clk 0:02:10.4]} 15. Qxe5+
{[%clk 0:02:28.8]} 15... Qxe5 {[%clk 0:02:10.3]} 16. Nxe5 {[%clk 0:02:29.7]}
16... Bxg2 {[%clk 0:02:10.8]} 17. Rh2 {[%clk 0:02:29]} 17... Bd5 {[%clk
0:02:10.5]} 18. O-O-O {[%clk 0:02:25.4]} 18... Be6 {[%clk 0:02:10]} 19. b3
{[%clk 0:02:18.2]} 19... f6 {[%clk 0:02:01.4]} 20. Nxg6 {[%clk 0:02:15.8]} 20...
Rg8 {[%clk 0:01:59.3]} 21. Nf4 {[%clk 0:02:15.2]} 21... Bf5 {[%clk 0:01:54.5]}
22. Rd5 {[%clk 0:02:09.1]} 22... Bg6 {[%clk 0:01:45]} 23. Nxg6 {[%clk 0:02:09]}
23... hxg6 {[%clk 0:01:45.9]} 24. Rh7 {[%clk 0:02:08.2]} 24... Rd8 {[%clk
0:01:45.1]} 25. Rxd8+ {[%clk 0:02:06.6]} 25... Kxd8 {[%clk 0:01:45]} 26. e4
{[%clk 0:02:05.7]} 26... g5 {[%clk 0:01:42.3]} 27. Kd2 {[%clk 0:02:03.8]} 27...
Re8 {[%clk 0:01:41.4]} 28. Kd3 {[%clk 0:02:03.7]} 28... Re6 {[%clk 0:01:40.3]}
29. f4 {[%clk 0:02:03]} 29... Rd6+ {[%clk 0:01:39.5]} 30. Ke3 {[%clk 0:02:03.2]}
30... gxf4+ {[%clk 0:01:39.2]} 31. gxf4 {[%clk 0:02:03.4]} 31... b5 {[%clk
0:01:39.9]} 32. e5 {[%clk 0:01:57.9]} 32... fxe5 {[%clk 0:01:38.7]} 33. fxe5
{[%clk 0:01:58.8]} 33... Ra6 {[%clk 0:01:38]} 34. Kd4 {[%clk 0:01:58]} 34...
Rxa2 {[%clk 0:01:36.7]} 35. Rh2 {[%clk 0:01:54.7]} 35... a5 {[%clk 0:01:31.3]}
36. Kd5 {[%clk 0:01:51.8]} 36... a4 {[%clk 0:01:28.9]} 37. bxa4 {[%clk
0:01:46.8]} 37... Rxa4 {[%clk 0:01:24.1]} 38. Ke6 {[%clk 0:01:45.2]} 38... Kc8
{[%clk 0:01:23]} 39. Ke7 {[%clk 0:01:45]} 39... Re4 {[%clk 0:01:19.3]} 40. e6
{[%clk 0:01:45.4]} 40... Kb7 {[%clk 0:01:13.6]} 41. Rh5 {[%clk 0:01:43.2]} 41...
Kc6 {[%clk 0:01:06.5]} 42. Rh8 {[%clk 0:01:34.4]} 42... Re2 {[%clk 0:01:00.4]}
43. Kf7 {[%clk 0:01:31.9]} 43... Rf2+ {[%clk 0:00:55.7]} 44. Ke8 {[%clk
0:01:30.9]} 44... Rxc2 {[%clk 0:00:51]} 45. e7 {[%clk 0:01:30.6]} 45... Re2
{[%clk 0:00:50.7]} 46. Rh6+ {[%clk 0:01:30.8]} 46... Kd5 {[%clk 0:00:49.2]} 47.
Kd7 {[%clk 0:01:28.7]} 47... c5 {[%clk 0:00:48.4]} 48. Rd6+ {[%clk 0:01:26.9]}
48... Kc4 {[%clk 0:00:48.3]} 49. Re6 {[%clk 0:01:27.2]} 1-0

[Event "Early-Titled-Tuesday-Blitz-October-24-2023"]
[Site "Chess.com"]
[Date "2023.10.24"]
[Round "3"]
[White "blitzking1729"]
[Black "Emp3rador"]
[Result "1-0"]
[WhiteElo "2811"]
[BlackElo "2544"]
[TimeControl "180+1"]
[EndTime "8:26:30 PDT"]
[Termination "blitzking1729 won by resignation"]

1. Nf3 {[%clk 0:03:00.9]} 1... d5 {[%clk 0:02:59.7]} 2. g3 {[%clk 0:02:58.7]}
2... Nf6 {[%clk 0:03:00]} 3. Bg2 {[%clk 0:02:56.9]} 3... c5 {[%clk 0:02:59]} 4.
O-O {[%clk 0:02:57.1]} 4... e6 {[%clk 0:02:58.3]} 5. c4 {[%clk 0:02:56.2]} 5...
Be7 {[%clk 0:02:53.6]} 6. cxd5 {[%clk 0:02:55.1]} 6... Nxd5 {[%clk 0:02:53.4]}
7. d4 {[%clk 0:02:49.1]} 7... cxd4 {[%clk 0:02:52.6]} 8. Nxd4 {[%clk 0:02:47.4]}
8... O-O {[%clk 0:02:52.6]} 9. e4 {[%clk 0:02:47.4]} 9... Nb6 {[%clk 0:02:46.4]}
10. Nc3 {[%clk 0:02:46.1]} 10... Bd7 {[%clk 0:02:36.4]} 11. Qe2 {[%clk
0:02:44.2]} 11... a6 {[%clk 0:02:36]} 12. Be3 {[%clk 0:02:43.5]} 12... Nc6
{[%clk 0:02:34.3]} 13. Rfd1 {[%clk 0:02:41.9]} 13... Qc7 {[%clk 0:00:59.1]} 14.
Rac1 {[%clk 0:02:14.1]} 14... Nxd4 {[%clk 0:00:58]} 15. Bxd4 {[%clk 0:02:14.5]}
15... Bc6 {[%clk 0:00:56.8]} 16. Qg4 {[%clk 0:01:56.8]} 16... g6 {[%clk
0:00:36.6]} 17. Qe2 {[%clk 0:01:42.3]} 17... Rfd8 {[%clk 0:00:25.3]} 18. Bf1
{[%clk 0:01:30.4]} 18... Rd7 {[%clk 0:00:22.1]} 19. Qe3 {[%clk 0:01:29.3]} 19...
Nc8 {[%clk 0:00:19.8]} 20. Qh6 {[%clk 0:01:20.9]} 20... e5 {[%clk 0:00:17.4]}
21. Be3 {[%clk 0:01:19]} 21... Nd6 {[%clk 0:00:17.6]} 22. Nd5 {[%clk 0:01:18.4]}
22... Qd8 {[%clk 0:00:17.7]} 23. Nxe7+ {[%clk 0:01:17.2]} 23... Qxe7 {[%clk
0:00:18.6]} 24. Bh3 {[%clk 0:01:10.8]} 24... Rdd8 {[%clk 0:00:17.6]} 25. Bb6
{[%clk 0:01:09.3]} 25... Rdc8 {[%clk 0:00:10.9]} 26. Bxc8 {[%clk 0:01:06.8]}
26... Rxc8 {[%clk 0:00:10.4]} 27. Bc5 {[%clk 0:01:06.5]} 27... Rd8 {[%clk
0:00:10.9]} 28. Qd2 {[%clk 0:01:03.8]} 28... Qe6 {[%clk 0:00:06.9]} 29. f3
{[%clk 0:01:00.1]} 1-0

[Event "Early-Titled-Tuesday-Blitz-October-24-2023"]
[Site "Chess.com"]
[Date "2023.10.24"]
[Round "3"]
[White "WFM_Sara_Adel"]
[Black "subham777"]
[Result "0-1"]
[WhiteElo "2187"]
[BlackElo "2525"]
[TimeControl "180+1"]
[EndTime "8:26:31 PDT"]
[Termination "subham777 won by resignation"]

1. e4 {[%clk 0:03:00.9]} 1... e6 {[%clk 0:02:59.5]} 2. d4 {[%clk 0:03:00.3]}
2... d5 {[%clk 0:02:58.8]} 3. Nd2 {[%clk 0:03:00.7]} 3... c5 {[%clk 0:02:58.2]}
4. Ngf3 {[%clk 0:02:58.6]} 4... cxd4 {[%clk 0:02:46.6]} 5. e5 {[%clk 0:02:56.9]}
5... Nc6 {[%clk 0:02:44.8]} 6. Bb5 {[%clk 0:02:54.4]} 6... Bd7 {[%clk
0:02:42.4]} 7. Bxc6 {[%clk 0:02:53.5]} 7... bxc6 {[%clk 0:02:42.1]} 8. Nxd4
{[%clk 0:02:54.4]} 8... c5 {[%clk 0:02:41.9]} 9. N4f3 {[%clk 0:02:54.2]} 9...
Ne7 {[%clk 0:02:42.3]} 10. O-O {[%clk 0:02:52.9]} 10... Ng6 {[%clk 0:02:42.3]}
11. Nb3 {[%clk 0:02:48.5]} 11... Be7 {[%clk 0:02:40.3]} 12. Bd2 {[%clk
0:02:47.2]} 12... O-O {[%clk 0:02:37.9]} 13. Ba5 {[%clk 0:02:45.9]} 13... Qc8
{[%clk 0:02:35.8]} 14. c3 {[%clk 0:02:44.8]} 14... Qa6 {[%clk 0:02:28.7]} 15. c4
{[%clk 0:02:25.4]} 15... Bc6 {[%clk 0:02:04.3]} 16. cxd5 {[%clk 0:02:17.9]}
16... Bxd5 {[%clk 0:02:02]} 17. Bc3 {[%clk 0:02:18.4]} 17... Rfd8 {[%clk
0:01:57.3]} 18. Qc2 {[%clk 0:02:12.4]} 18... Bxf3 {[%clk 0:01:53.2]} 19. gxf3
{[%clk 0:02:11.5]} 19... Rd5 {[%clk 0:01:33.2]} 20. Qe4 {[%clk 0:02:09.5]} 20...
Rad8 {[%clk 0:01:31]} 21. f4 {[%clk 0:02:06.4]} 21... Nh4 {[%clk 0:01:17.7]} 22.
Rfe1 {[%clk 0:02:02.9]} 22... Nf5 {[%clk 0:00:58.4]} 23. Na5 {[%clk 0:02:02.9]}
23... Bf8 {[%clk 0:00:38.4]} 24. Nc4 {[%clk 0:02:01]} 24... Rd4 {[%clk
0:00:35.8]} 25. Bxd4 {[%clk 0:01:54]} 25... Rxd4 {[%clk 0:00:36.2]} 26. Qa8
{[%clk 0:01:50.1]} 26... Qxc4 {[%clk 0:00:34]} 27. Red1 {[%clk 0:01:46.6]} 27...
h6 {[%clk 0:00:26.7]} 28. Rxd4 {[%clk 0:01:43.3]} 28... Qxd4 {[%clk 0:00:25.1]}
29. Qf3 {[%clk 0:01:43.8]} 29... Nh4 {[%clk 0:00:22]} 30. Qe3 {[%clk 0:01:38.1]}
30... Qxb2 {[%clk 0:00:16.2]} 31. Rd1 {[%clk 0:01:38.4]} 31... Nf5 {[%clk
0:00:14.9]} 32. Qf3 {[%clk 0:01:26.2]} 32... Nd4 {[%clk 0:00:15]} 33. Qg4 {[%clk
0:01:22.4]} 33... Qxa2 {[%clk 0:00:14.2]} 34. Kg2 {[%clk 0:01:22.9]} 34... Qd5+
{[%clk 0:00:14]} 35. Kh3 {[%clk 0:01:22.9]} 35... a5 {[%clk 0:00:11.2]} 36. Ra1
{[%clk 0:01:10.9]} 36... a4 {[%clk 0:00:11.3]} 37. Rxa4 {[%clk 0:01:11.1]} 37...
Qb3+ {[%clk 0:00:11.4]} 38. Qg3 {[%clk 0:01:09.2]} 38... Qxa4 {[%clk 0:00:11.1]}
39. Kh4 {[%clk 0:01:06.8]} 39... Nf5+ {[%clk 0:00:11]} 0-1

[Event "Early-Titled-Tuesday-Blitz-October-24-2023"]
[Site "Chess.com"]
[Date "2023.10.24"]
[Round "3"]
[White "OK97"]
[Black "gueraumasague"]
[Result "1-0"]
[WhiteElo "2773"]
[BlackElo "2493"]
[TimeControl "180+1"]
[EndTime "8:26:35 PDT"]
[Termination "OK97 won on time"]

1. d4 {[%clk 0:03:00.9]} 1... g6 {[%clk 0:03:00.9]} 2. e4 {[%clk 0:02:58.6]}
2... Bg7 {[%clk 0:03:01.4]} 3. Nc3 {[%clk 0:02:58.6]} 3... c6 {[%clk 0:03:01.9]}
4. Be3 {[%clk 0:02:52.6]} 4... d5 {[%clk 0:03:02.4]} 5. f3 {[%clk 0:02:52.8]}
5... dxe4 {[%clk 0:03:01.7]} 6. fxe4 {[%clk 0:02:53]} 6... Nf6 {[%clk
0:03:02.6]} 7. Nf3 {[%clk 0:02:49.9]} 7... Ng4 {[%clk 0:03:02.2]} 8. Bg1 {[%clk
0:02:49.8]} 8... e5 {[%clk 0:03:02]} 9. d5 {[%clk 0:02:42.2]} 9... O-O {[%clk
0:02:54.6]} 10. Bc4 {[%clk 0:02:31.9]} 10... Bh6 {[%clk 0:02:34.4]} 11. Qe2
{[%clk 0:02:22.2]} 11... b5 {[%clk 0:02:12.5]} 12. Bb3 {[%clk 0:02:20.7]} 12...
b4 {[%clk 0:02:13.1]} 13. Na4 {[%clk 0:02:19]} 13... Ba6 {[%clk 0:02:13.7]} 14.
Bc4 {[%clk 0:02:07.5]} 14... Qa5 {[%clk 0:01:59.6]} 15. Nc5 {[%clk 0:01:53.5]}
15... Bxc4 {[%clk 0:00:44.6]} 16. Qxc4 {[%clk 0:01:54.4]} 16... cxd5 {[%clk
0:00:45.5]} 17. exd5 {[%clk 0:01:48.3]} 17... Be3 {[%clk 0:00:36.7]} 18. Nb3
{[%clk 0:01:40.4]} 18... Qd8 {[%clk 0:00:08]} 19. Qxg4 {[%clk 0:01:39.1]} 19...
Bxg1 {[%clk 0:00:08.9]} 20. Rxg1 {[%clk 0:01:38.7]} 20... e4 {[%clk 0:00:09.8]}
21. Nfd4 {[%clk 0:01:29.9]} 21... h5 {[%clk 0:00:10.3]} 22. Qf4 {[%clk
0:01:25.8]} 22... Qxd5 {[%clk 0:00:08.4]} 23. O-O-O {[%clk 0:01:25]} 23... Nd7
{[%clk 0:00:08.3]} 24. Ne2 {[%clk 0:01:15]} 24... Qe6 {[%clk 0:00:08]} 25. Rd6
{[%clk 0:01:11.2]} 25... Qe7 {[%clk 0:00:08.5]} 26. Rgd1 {[%clk 0:01:11.2]}
26... Ne5 {[%clk 0:00:04.3]} 27. Qxe4 {[%clk 0:01:09.1]} 27... Rac8 {[%clk
0:00:04.2]} 28. Kb1 {[%clk 0:01:02.4]} 28... Rfe8 {[%clk 0:00:03.1]} 29. Nf4
{[%clk 0:00:47.6]} 1-0

[Event "Early-Titled-Tuesday-Blitz-October-24-2023"]
[Site "Chess.com"]
[Date "2023.10.24"]
[Round "3"]
[White "CFN_Good_Evening"]
[Black "GMG"]
[Result "1-0"]
[WhiteElo "1770"]
[BlackElo "2762"]
[TimeControl "180+1"]
[EndTime "8:26:36 PDT"]
[Termination "CFN_Good_Evening won on time"]

1. d4 {[%clk 0:02:49.5]} 1... d5 {[%clk 0:02:59.9]} 2. c4 {[%clk 0:02:48.1]}
2... e6 {[%clk 0:03:00.3]} 3. Nc3 {[%clk 0:02:47]} 3... a6 {[%clk 0:02:59.2]} 4.
e4 {[%clk 0:02:44.1]} 4... dxe4 {[%clk 0:02:58.8]} 5. Nxe4 {[%clk 0:02:45]} 5...
Bb4+ {[%clk 0:02:59.2]} 6. Nc3 {[%clk 0:02:42.7]} 6... c5 {[%clk 0:02:49.7]} 7.
Ne2 {[%clk 0:02:29.3]} 7... Nf6 {[%clk 0:02:40.2]} 8. Qa4+ {[%clk 0:02:25.9]}
8... Bd7 {[%clk 0:02:19.2]} 9. Qb3 {[%clk 0:02:23]} 9... Nc6 {[%clk 0:02:16.8]}
10. dxc5 {[%clk 0:02:19.3]} 10... Bxc5 {[%clk 0:02:14.9]} 11. g3 {[%clk
0:01:58.5]} 11... Na5 {[%clk 0:02:10.3]} 12. Qc2 {[%clk 0:01:56.3]} 12... Nxc4
{[%clk 0:02:09.8]} 13. Bg2 {[%clk 0:01:54.8]} 13... b5 {[%clk 0:02:01.2]} 14. b3
{[%clk 0:01:42.8]} 14... Na3 {[%clk 0:01:55.7]} 15. Bxa3 {[%clk 0:00:59.6]}
15... Bxa3 {[%clk 0:01:56.6]} 16. Bxa8 {[%clk 0:00:57.6]} 16... Qxa8 {[%clk
0:01:56.4]} 17. O-O {[%clk 0:00:58.2]} 17... O-O {[%clk 0:01:47]} 18. Rad1
{[%clk 0:00:57.5]} 18... e5 {[%clk 0:01:46.3]} 19. Ne4 {[%clk 0:00:55.3]} 19...
Rc8 {[%clk 0:01:34.8]} 20. Nxf6+ {[%clk 0:00:54.5]} 20... gxf6 {[%clk
0:01:35.7]} 21. Qd2 {[%clk 0:00:54.3]} 21... Bh3 {[%clk 0:01:33]} 22. f3 {[%clk
0:00:52.4]} 22... Bc5+ {[%clk 0:01:28.5]} 23. Kh1 {[%clk 0:00:52.1]} 23... Bxf1
{[%clk 0:01:23]} 24. Rxf1 {[%clk 0:00:53]} 24... Rd8 {[%clk 0:01:20.8]} 25. Qh6
{[%clk 0:00:53.6]} 25... Qc6 {[%clk 0:01:19.2]} 26. Nc3 {[%clk 0:00:50.8]} 26...
Bf8 {[%clk 0:01:11.4]} 27. Qe3 {[%clk 0:00:46.6]} 27... f5 {[%clk 0:01:10.3]}
28. Qg5+ {[%clk 0:00:45.7]} 1-0

[Event "Early-Titled-Tuesday-Blitz-October-24-2023"]
[Site "Chess.com"]
[Date "2023.10.24"]
[Round "3"]
[White "rachidhuilda"]
[Black "THE_PLAYER6"]
[Result "0-1"]
[WhiteElo "2372"]
[BlackElo "2564"]
[TimeControl "180+1"]
[EndTime "8:26:38 PDT"]
[Termination "THE_PLAYER6 won by checkmate"]

1. d4 {[%clk 0:03:00.9]} 1... Nf6 {[%clk 0:02:59]} 2. Bg5 {[%clk 0:02:58.5]}
2... d5 {[%clk 0:02:58.3]} 3. Bxf6 {[%clk 0:02:57.7]} 3... gxf6 {[%clk
0:02:57.4]} 4. c4 {[%clk 0:02:56.5]} 4... e6 {[%clk 0:02:51.8]} 5. Nc3 {[%clk
0:02:51.4]} 5... Bb4 {[%clk 0:02:48.8]} 6. e3 {[%clk 0:02:46.3]} 6... c5 {[%clk
0:02:46.7]} 7. Ne2 {[%clk 0:02:43.5]} 7... Nc6 {[%clk 0:02:44.7]} 8. cxd5 {[%clk
0:02:42.1]} 8... exd5 {[%clk 0:02:44.5]} 9. g3 {[%clk 0:02:42]} 9... Bg4 {[%clk
0:02:42]} 10. Bg2 {[%clk 0:02:37.8]} 10... cxd4 {[%clk 0:02:42]} 11. exd4 {[%clk
0:02:34]} 11... Bxc3+ {[%clk 0:02:41]} 12. bxc3 {[%clk 0:02:31.5]} 12... O-O
{[%clk 0:02:30.8]} 13. O-O {[%clk 0:02:29]} 13... Re8 {[%clk 0:02:31.3]} 14. Re1
{[%clk 0:02:27.1]} 14... Qa5 {[%clk 0:02:27.8]} 15. Qd3 {[%clk 0:02:05.7]} 15...
Bxe2 {[%clk 0:02:25.3]} 16. Rxe2 {[%clk 0:02:05.9]} 16... Rxe2 {[%clk
0:02:25.6]} 17. Qxe2 {[%clk 0:02:05.4]} 17... Qxc3 {[%clk 0:02:26.2]} 18. Qg4+
{[%clk 0:01:50.6]} 18... Kh8 {[%clk 0:02:25.4]} 19. Rd1 {[%clk 0:01:48.3]} 19...
Rg8 {[%clk 0:02:21.6]} 20. Qf4 {[%clk 0:01:44.3]} 20... Rg6 {[%clk 0:02:19.2]}
21. Bxd5 {[%clk 0:01:42.2]} 21... Kg7 {[%clk 0:02:10.9]} 22. Qc7 {[%clk
0:01:19.1]} 22... Qc2 {[%clk 0:01:57.1]} 23. Qxf7+ {[%clk 0:01:18.3]} 23... Kh6
{[%clk 0:01:57.3]} 24. Qf8+ {[%clk 0:01:14.4]} 24... Kg5 {[%clk 0:01:55.2]} 25.
h4+ {[%clk 0:01:05.8]} 25... Kg4 {[%clk 0:01:52.2]} 26. Re1 {[%clk 0:00:50.6]}
26... Nxd4 {[%clk 0:01:46.3]} 27. Re4+ {[%clk 0:00:40.1]} 27... Kh3 {[%clk
0:01:43.8]} 28. Re1 {[%clk 0:00:21.6]} 28... Ne2+ {[%clk 0:01:20]} 29. Kf1
{[%clk 0:00:14.8]} 29... Rxg3 {[%clk 0:01:13.9]} 30. Be6+ {[%clk 0:00:12.7]}
30... Kh2 {[%clk 0:01:13.4]} 31. Qd6 {[%clk 0:00:11.2]} 31... Qe4 {[%clk
0:00:46.7]} 32. Qxg3+ {[%clk 0:00:08.1]} 32... Nxg3+ {[%clk 0:00:46.3]} 33. fxg3
{[%clk 0:00:07.5]} 33... Qg2# {[%clk 0:00:46.7]} 0-1